[Event "XXIX Cracovia 2018"]
[Site "Krakow"]
[Date "2018.12.27"]
[Round "1"]
[White "Paszewski, Mateusz"]
[Black "Wisniewski, Michal"]
[Result "1-0"]
[ECO "B07"]
[WhiteElo "2342"]
[BlackElo "2161"]
[Annotator "NA"]
[PlyCount "57"]
[EventDate "2018.12.27"]
[EventType "swiss"]
[EventCountry "POL"]
[SourceTitle "playchess.com"]
[Source "ChessBase"]
[SourceQuality "1"]
[TimeControl "40/5400+30:1800+30"]

1. e4 {[%emt 0:00:00]} d6 {[%emt 0:00:23]} 2. d4 {[%emt 0:00:00]} Nf6 {[%emt 0:00:04]} 3. Nc3 {[%emt 0:00:08]} g6 {[%emt 0:00:17]} 4. g3 {[%emt 0:02:58]} Nbd7 {[%emt 0:02:29]} 5. Bg2 {[%emt 0:03:15]} Bg7 {[%emt 0:00:07]} 6. Nge2 {[%emt 0:00:05]} c6 {[%emt 0:00:20]} 7. a4 {[%emt 0:04:40]} e5 {[%emt 0:01:02]} 8. O-O {[%emt 0:01:51]} O-O {[%emt 0:00:06]} 9. h3 {[%emt 0:00:16]} Re8 {[%emt 0:03:59]} 10. Be3 {[%emt 0:06:03]} Qc7 {[%emt 0:01:07]} 11. g4 {[%emt 0:07:51]} Nf8 {[%emt 0:03:07]} 12. Qd2 {[%emt 0:03:27]} exd4 {[%emt 0:23:23]} 13. Nxd4 {[%emt 0:03:45]} Ne6 {[%emt 0:05:34]} 14. Nde2 {[%emt 0:03:26]} Nc5 {[%emt 0:02:58]} 15. Ng3 {[%emt 0:02:43]} Nfd7 {[%emt 0:08:26]} 16. Bd4 {[%emt 0:09:03]} Ne5 {[%emt 0:06:29]} 17. b3 {[%emt 0:01:41]} Ne6 {[%emt 0:01:21]} 18. Be3 {[%emt 0:03:12]} Qa5 {[%emt 0:00:02]} 19. Nge2 {[%emt 0:00:31]} c5 {[%emt 0:00:01]} 20. Rad1 {[%emt 0:04:17]} Bd7 {[%emt 0:07:05]} 21. f4 {[%emt 0:02:52]} Nc6 {[%emt 0:00:24]} 22. Nb5 {[%emt 0:00:07]} Ned4 {[%emt 0:03:18]} 23. Nbxd4 {[%emt 0:07:25]} Qxd2 {[%emt 0:00:47]} 24. Rxd2 {[%emt 0:00:01]} cxd4 {[%emt 0:00:11]} 25. Nxd4 {[%emt 0:00:02]} d5 {[%emt 0:00:06]} 26. Nb5 {[%emt 0:01:15]} Nb4 {[%emt 0:00:45]} 27. Nc7 {[%emt 0:00:47]} Rac8 {[%emt 0:00:07]} 28. Nxe8 {[%emt 0:00:07]} Rxe8 {[%emt 0:00:02]} 29. e5 {[%emt 0:01:25]} 1-0

[Event "XXIX Cracovia 2018"]
[Site "Krakow"]
[Date "2018.12.27"]
[Round "1"]
[White "Colijn, Stefan"]
[Black "Leiter, Thomas"]
[Result "1-0"]
[ECO "A14"]
[WhiteElo "2331"]
[BlackElo "2151"]
[Annotator "NA"]
[PlyCount "59"]
[EventDate "2018.12.27"]
[EventType "swiss"]
[EventCountry "POL"]
[SourceTitle "playchess.com"]
[Source "ChessBase"]
[SourceQuality "1"]
[TimeControl "40/5400+30:1800+30"]

1. Nf3 Nf6 2. g3 e6 3. Bg2 d5 4. c4 Be7 5. O-O O-O 6. b3 d4 7. Bb2 c5 8. b4 a5 9. a3 axb4 10. axb4 Rxa1 11. Bxa1 Qc7 12. bxc5 e5 13. e3 Qxc5 14. exd4 exd4 15. d3 Nc6 16. Nbd2 Rd8 17. Re1 Bg4 18. h3 Be6 19. Nb3 Qb6 20. Ng5 Bb4 21. Nxe6 fxe6 22. Rxe6 Bc3 23. Qc2 Bxa1 24. Nxa1 Ra8 25. Nb3 Ra3 26. Qe2 Qxb3 27. Re8+ Kf7 28. Qe6+ Kg6 29. Be4+ Kh6 30. Rh8 1-0

[Event "XXIX Cracovia 2018"]
[Site "Krakow"]
[Date "2018.12.27"]
[Round "1"]
[White "Szczurek, Krzysztof"]
[Black "Schreiner, Peter"]
[Result "1-0"]
[ECO "A45"]
[WhiteElo "2212"]
[BlackElo "2479"]
[Annotator "ChessBase"]
[PlyCount "93"]
[EventDate "2018.12.27"]
[EventType "swiss"]
[EventCountry "POL"]
[SourceTitle "playchess.com"]
[Source "ChessBase"]
[SourceQuality "1"]
[TimeControl "40/5400+30:1800+30"]

1. d4 {[%emt 0:00:00]} Nf6 {[%emt 0:00:00]} 2. Nc3 {[%emt 0:00:00]} d5 {[%emt 0:01:40]} 3. Bf4 {[%emt 0:00:34]} a6 {[%emt 0:05:10]} 4. e3 {[%emt 0:01:37]} c5 {[%emt 0:03:40]} 5. Qd2 {[%emt 0:04:41]} Nc6 {[%emt 0:08:52]} 6. f3 {[%emt 0:03:28]} e6 {[%emt 0:02:22]} 7. g4 {[%emt 0:07:00]} b5 {[%emt 0:05:51]} 8. a3 {[%emt 0:06:08]} Be7 {[%emt 0:02:19]} 9. h4 {[%emt 0:03:02]} Bb7 {[%emt 0:06:48]} 10. Nge2 {[%emt 0:07:40]} Nd7 {[%emt 0:01:47]} 11. h5 {[%emt 0:02:18]} e5 {[%emt 0:10:02]} 12. Bg3 {[%emt 0:04:59]} Nb6 {[%emt 0:01:37]} 13. b3 {[%emt 0:10:25]} b4 {[%emt 0:23:05]} 14. axb4 {[%emt 0:05:31]} cxd4 {[%emt 0:00:07]} 15. exd4 {[%emt 0:00:38]} Bxb4 {[%emt 0:00:06]} 16. O-O-O {[%emt 0:04:07]} Nc4 {[%emt 0:11:35]} 17. Qe1 {[%emt 0:01:58]} Ne3 {[%emt 0:05:30]} 18. Rd3 {[%emt 0:01:19]} Nxf1 {[%emt 0:01:25]} 19. Rxf1 {[%emt 0:00:41]} e4 {[%emt 0:02:49]} 20. fxe4 {[%emt 0:01:43]} dxe4 {[%emt 0:00:06]} 21. Qf2 {[%emt 0:01:41]} O-O {[%emt 0:00:08]} 22. Nxe4 {[%emt 0:00:33]} Ba3+ {[%emt 0:01:46]} 23. Kb1 {[%emt 0:01:21]} Nb4 {[%emt 0:00:36]} 24. Re3 {[%emt 0:00:21]} Nd5 {[%emt 0:02:54]} 25. Rf3 {[%emt 0:03:38]} Qe7 {[%emt 0:01:06]} 26. Nc5 {[%emt 0:00:52]} a5 {[%emt 0:00:51]} 27. h6 {[%emt 0:08:22]} gxh6 {[%emt 0:00:12]} 28. Bh4 {[%emt 0:06:51]} f6 {[%emt 0:00:02]} 29. Ng3 {[%emt 0:00:56]} Bxc5 {[%emt 0:00:38]} 30. Nf5 {[%emt 0:01:58]} Qd7 {[%emt 0:00:54]} 31. Nxh6+ {[%emt 0:00:48]} Kg7 {[%emt 0:00:57]} 32. Nf5+ {[%emt 0:01:20]} Kh8 {[%emt 0:00:08]} 33. dxc5 {[%emt 0:00:26]} a4 {[%emt 0:00:09]} 34. Qd4 {[%emt 0:01:02]} axb3 {[%emt 0:00:19]} 35. cxb3 {[%emt 0:00:53]} Ba6 {[%emt 0:00:44]} 36. Re1 {[%emt 0:01:45]} Qf7 {[%emt 0:00:34]} 37. Nd6 {[%emt 0:01:04]} Qg6+ {[%emt 0:00:10]} 38. Kb2 {[%emt 0:00:32]} Bb7 {[%emt 0:00:27]} 39. Rf5 {[%emt 0:01:42]} Bc6 {[%emt 0:00:37]} 40. Re6 {[%emt 0:00:00]} h6 {[%emt 0:00:00]} 41. Bxf6+ {[%emt 0:12:51]} Kg8 {[%emt 0:10:30]} 42. Nc4 {[%emt 0:04:15]} Nxf6 {[%emt 0:03:52]} 43. Rxc6 {[%emt 0:01:53]} Kg7 {[%emt 0:02:30]} 44. Rc7+ {[%emt 0:02:08]} Kh8 {[%emt 0:00:24]} 45. Ne5 {[%emt 0:00:50]} Qe8 {[%emt 0:02:22]} 46. Qf4 {[%emt 0:00:20]} Kg8 {[%emt 0:01:05]} 47. Rxf6 {[%emt 0:01:20]} 1-0

[Event "XXIX Cracovia 2018"]
[Site "Krakow"]
[Date "2018.12.27"]
[Round "1"]
[White "Bombek, Peter"]
[Black "Golubka, Petro"]
[Result "0-1"]
[ECO "B06"]
[WhiteElo "2205"]
[BlackElo "2464"]
[Annotator "ChessBase"]
[PlyCount "130"]
[EventDate "2018.12.27"]
[EventType "swiss"]
[EventCountry "POL"]
[SourceTitle "playchess.com"]
[Source "ChessBase"]
[SourceQuality "1"]
[TimeControl "40/5400+30:1800+30"]

1. d4 {[%emt 0:00:32]} g6 {[%emt 0:00:00]} 2. e4 {[%emt 0:00:50]} Bg7 {[%emt 0:00:00]} 3. Nf3 {[%emt 0:00:37]} d6 {[%emt 0:00:19]} 4. Bd3 {[%emt 0:01:41]} Nc6 {[%emt 0:00:13]} 5. c3 {[%emt 0:00:40]} e5 {[%emt 0:00:19]} 6. dxe5 {[%emt 0:00:32]} dxe5 {[%emt 0:00:09]} 7. O-O {[%emt 0:00:40]} Nf6 {[%emt 0:00:32]} 8. h3 {[%emt 0:02:24]} O-O {[%emt 0:00:05]} 9. Be3 {[%emt 0:03:33]} a6 {[%emt 0:04:04]} 10. Bc2 {[%emt 0:03:54]} Qe7 {[%emt 0:01:17]} 11. Nbd2 {[%emt 0:00:49]} Nh5 {[%emt 0:00:27]} 12. Nb3 {[%emt 0:05:43]} b6 {[%emt 0:00:31]} 13. Qc1 {[%emt 0:03:32]} Be6 {[%emt 0:01:00]} 14. Rd1 {[%emt 0:04:48]} Kh8 {[%emt 0:04:22]} 15. g4 {[%emt 0:10:08]} Nf6 {[%emt 0:00:13]} 16. Nbd2 {[%emt 0:01:48]} h5 {[%emt 0:00:39]} 17. g5 {[%emt 0:01:48]} Ne8 {[%emt 0:01:07]} 18. Kh2 {[%emt 0:02:19]} Nd6 {[%emt 0:00:13]} 19. Ba4 {[%emt 0:04:59]} Bd7 {[%emt 0:01:06]} 20. Rg1 {[%emt 0:05:23]} Rfd8 {[%emt 0:01:05]} 21. Qf1 {[%emt 0:01:04]} a5 {[%emt 0:08:25]} 22. Rd1 {[%emt 0:02:35]} Nd4 {[%emt 0:02:40]} 23. Bxd7 {[%emt 0:04:24]} Nxf3+ {[%emt 0:02:01]} 24. Nxf3 {[%emt 0:00:11]} Qxd7 {[%emt 0:00:27]} 25. c4 {[%emt 0:21:19]} Qa4 {[%emt 0:01:54]} 26. b3 {[%emt 0:05:36]} Qxa2 {[%emt 0:01:11]} 27. Qd3 {[%emt 0:00:56]} a4 {[%emt 0:07:08]} 28. Qd5 {[%emt 0:01:06]} Re8 {[%emt 0:01:29]} 29. Qc6 {[%emt 0:05:06]} Rac8 {[%emt 0:04:29]} 30. c5 {[%emt 0:01:33]} bxc5 {[%emt 0:00:23]} 31. bxa4 {[%emt 0:00:25]} c4 {[%emt 0:01:15]} 32. Ra1 {[%emt 0:00:33]} Qe2 {[%emt 0:01:08]} 33. Nd2 {[%emt 0:00:51]} Re6 {[%emt 0:01:20]} 34. a5 {[%emt 0:01:04]} f5 {[%emt 0:02:02]} 35. gxf6 {[%emt 0:00:51]} Rxf6 {[%emt 0:00:14]} 36. a6 {[%emt 0:01:35]} Bh6 {[%emt 0:00:46]} 37. Rg2 {[%emt 0:00:59]} Bxe3 {[%emt 0:01:22]} 38. fxe3 {[%emt 0:00:10]} Rf2 {[%emt 0:00:02]} 39. Rag1 {[%emt 0:00:19]} Qxd2 {[%emt 0:02:20]} 40. a7 {[%emt 0:00:00]} Qa2 {[%emt 0:03:33]} 41. Rxf2 {[%emt 0:09:19]} Qxf2+ {[%emt 0:30:06]} 42. Rg2 {[%emt 0:00:51]} Qxe3 {[%emt 0:12:44]} 43. a8=Q {[%emt 0:02:20]} Rxa8 {[%emt 0:00:05]} 44. Qxa8+ {[%emt 0:00:07]} Kg7 {[%emt 0:01:29]} 45. Qd8 {[%emt 0:08:37]} Qf4+ {[%emt 0:01:28]} 46. Kg1 {[%emt 0:00:49]} Nxe4 {[%emt 0:03:39]} 47. Qxc7+ {[%emt 0:02:34]} Kh6 {[%emt 0:00:08]} 48. Qc8 {[%emt 0:03:01]} Ng5 {[%emt 0:01:09]} 49. Qh8+ {[%emt 0:01:48]} Nh7 {[%emt 0:00:35]} 50. Qg8 {[%emt 0:03:28]} Qe4 {[%emt 0:00:30]} 51. Qc8 {[%emt 0:01:37]} Qe3+ {[%emt 0:01:29]} 52. Kh2 {[%emt 0:00:18]} Qf4+ {[%emt 0:00:23]} 53. Kg1 {[%emt 0:00:29]} Qd4+ {[%emt 0:02:27]} 54. Kh2 {[%emt 0:00:17]} c3 {[%emt 0:04:19]} 55. Qg8 {[%emt 0:02:19]} Qf4+ {[%emt 0:05:29]} 56. Kg1 {[%emt 0:00:07]} Qe4 {[%emt 0:00:36]} 57. Qc8 {[%emt 0:00:20]} Qd4+ {[%emt 0:00:34]} 58. Kh2 {[%emt 0:00:11]} e4 {[%emt 0:00:14]} 59. h4 {[%emt 0:02:37]} e3 {[%emt 0:01:41]} 60. Kh3 {[%emt 0:00:17]} Qd3 {[%emt 0:01:27]} 61. Kh2 {[%emt 0:01:06]} e2 {[%emt 0:00:20]} 62. Qe8 {[%emt 0:00:22]} c2 {[%emt 0:01:01]} 63. Rg1 {[%emt 0:00:33]} Qd6+ {[%emt 0:01:22]} 64. Kh1 {[%emt 0:00:39]} c1=Q {[%emt 0:00:31]} 65. Qe3+ {[%emt 0:00:25]} Qxe3 {[%emt 0:00:28]} 0-1

[Event "XXIX Cracovia 2018"]
[Site "Krakow"]
[Date "2018.12.27"]
[Round "1"]
[White "Pasti, Aron"]
[Black "Tomczak, Mikolaj"]
[Result "0-1"]
[ECO "B90"]
[WhiteElo "2196"]
[BlackElo "2442"]
[Annotator "NA"]
[PlyCount "94"]
[EventDate "2018.12.27"]
[EventType "swiss"]
[EventCountry "POL"]
[SourceTitle "playchess.com"]
[Source "ChessBase"]
[SourceQuality "1"]
[TimeControl "40/5400+30:1800+30"]

1. e4 {[%emt 0:00:00]} c5 {[%emt 0:00:00]} 2. Nf3 {[%emt 0:00:00]} d6 {[%emt 0:00:00]} 3. d4 {[%emt 0:00:00]} cxd4 {[%emt 0:00:00]} 4. Nxd4 {[%emt 0:00:00]} Nf6 {[%emt 0:00:00]} 5. Nc3 {[%emt 0:00:00]} a6 {[%emt 0:00:00]} 6. h3 {[%emt 0:00:06]} e6 {[%emt 0:00:08]} 7. g4 {[%emt 0:00:05]} d5 {[%emt 0:00:04]} 8. exd5 {[%emt 0:01:30]} Nxd5 {[%emt 0:00:06]} 9. Nde2 {[%emt 0:01:00]} h5 {[%emt 0:00:11]} 10. Bg2 {[%emt 0:02:54]} hxg4 {[%emt 0:00:34]} 11. hxg4 {[%emt 0:01:25]} Rxh1+ {[%emt 0:00:07]} 12. Bxh1 {[%emt 0:00:02]} Qh4 {[%emt 0:00:33]} 13. Bxd5 {[%emt 0:03:02]} exd5 {[%emt 0:00:07]} 14. Qxd5 {[%emt 0:02:28]} Nc6 {[%emt 0:04:39]} 15. Bg5 {[%emt 0:16:35]} Qxg4 {[%emt 0:00:14]} 16. O-O-O {[%emt 0:03:30]} Be6 {[%emt 0:00:05]} 17. Qd2 {[%emt 0:00:09]} Rc8 {[%emt 0:03:26]} 18. Nd5 {[%emt 0:19:47]} f6 {[%emt 0:14:39]} 19. Bf4 {[%emt 0:10:10]} Kf7 {[%emt 0:08:57]} 20. Ndc3 {[%emt 0:06:31]} b5 {[%emt 0:12:14]} 21. a3 {[%emt 0:08:51]} Qf3 {[%emt 0:08:55]} 22. Qe3 {[%emt 0:02:44]} Qxe3+ {[%emt 0:00:09]} 23. Bxe3 {[%emt 0:00:01]} Bg4 {[%emt 0:01:54]} 24. Rg1 {[%emt 0:01:13]} Ne5 {[%emt 0:06:05]} 25. Bd4 {[%emt 0:04:54]} Bf3 {[%emt 0:02:09]} 26. Rg3 {[%emt 0:01:59]} Bb7 {[%emt 0:02:16]} 27. Re3 {[%emt 0:03:58]} Nc4 {[%emt 0:00:45]} 28. Rd3 {[%emt 0:00:15]} g5 {[%emt 0:05:04]} 29. Ng3 {[%emt 0:00:33]} Kg6 {[%emt 0:00:41]} 30. Rd1 {[%emt 0:02:16]} Re8 {[%emt 0:01:14]} 31. a4 {[%emt 0:02:02]} b4 {[%emt 0:00:45]} 32. Nce2 {[%emt 0:00:25]} Bf3 {[%emt 0:01:32]} 33. Re1 {[%emt 0:01:42]} Bd6 {[%emt 0:03:30]} 34. b3 {[%emt 0:01:18]} Na5 {[%emt 0:02:27]} 35. Kd2 {[%emt 0:02:03]} Nc6 {[%emt 0:00:35]} 36. Be3 {[%emt 0:00:41]} Be5 {[%emt 0:03:41]} 37. Kc1 {[%emt 0:03:11]} f5 {[%emt 0:01:50]} 38. Ng1 {[%emt 0:00:35]} Bg4 {[%emt 0:01:14]} 39. Bd2 {[%emt 0:00:25]} Rd8 {[%emt 0:01:58]} 40. Nf1 {[%emt 0:00:00]} f4 {[%emt 0:00:00]} 41. Nh2 {[%emt 0:08:53]} Bf5 {[%emt 0:01:50]} 42. Nhf3 {[%emt 0:01:06]} Bf6 {[%emt 0:00:18]} 43. Ne2 {[%emt 0:00:49]} Bg4 {[%emt 0:00:46]} 44. Nh2 {[%emt 0:00:53]} Bxe2 {[%emt 0:00:40]} 45. Rxe2 {[%emt 0:00:09]} Nd4 {[%emt 0:00:05]} 46. Re1 {[%emt 0:00:27]} Rc8 {[%emt 0:00:29]} 47. Bxb4 {[%emt 0:00:18]} Nxc2 {[%emt 0:00:17]} 0-1

[Event "XXIX Cracovia 2018"]
[Site "Krakow"]
[Date "2018.12.27"]
[Round "1"]
[White "Jansen, Bob"]
[Black "Cukrowski, Filip"]
[Result "1/2-1/2"]
[ECO "A45"]
[WhiteElo "2192"]
[BlackElo "2416"]
[Annotator "NA"]
[PlyCount "85"]
[EventDate "2018.12.27"]
[EventType "swiss"]
[EventCountry "POL"]
[SourceTitle "playchess.com"]
[Source "ChessBase"]
[SourceQuality "1"]
[TimeControl "40/5400+30:1800+30"]

1. d4 {[%emt 0:00:00]} Nf6 {[%emt 0:04:30]} 2. Bg5 {[%emt 0:00:00]} e6 {[%emt 0:00:29]} 3. e4 {[%emt 0:00:00]} h6 {[%emt 0:00:04]} 4. Bxf6 {[%emt 0:00:00]} Qxf6 {[%emt 0:00:05]} 5. c3 {[%emt 0:00:00]} g6 {[%emt 0:00:18]} 6. Bd3 {[%emt 0:00:11]} Bg7 {[%emt 0:00:08]} 7. Ne2 {[%emt 0:00:05]} d6 {[%emt 0:00:30]} 8. O-O b6 {[%emt 0:02:00]} 9. f4 {[%emt 0:03:00]} Bb7 {[%emt 0:09:11]} 10. f5 {[%emt 0:10:14]} gxf5 {[%emt 0:12:24]} 11. Ng3 {[%emt 0:14:23]} Qg5 {[%emt 0:02:09]} 12. exf5 {[%emt 0:02:55]} e5 {[%emt 0:00:52]} 13. f6 {[%emt 0:22:10]} Bxf6 {[%emt 0:09:19]} 14. Kh1 {[%emt 0:03:30]} Nd7 {[%emt 0:10:46]} 15. Nd2 {[%emt 0:01:30]} Qg7 {[%emt 0:16:19]} 16. Nde4 {[%emt 0:07:23]} Bg5 {[%emt 0:00:27]} 17. Qa4 {[%emt 0:20:10]} O-O-O {[%emt 0:12:11]} 18. Qxa7 {[%emt 0:01:43]} d5 {[%emt 0:02:53]} 19. Ba6 {[%emt 0:08:51]} Bxa6 {[%emt 0:02:27]} 20. Qxa6+ {[%emt 0:00:01]} Kb8 {[%emt 0:00:09]} 21. Nf5 {[%emt 0:00:47]} Qg6 {[%emt 0:01:11]} 22. Neg3 {[%emt 0:01:06]} h5 {[%emt 0:06:11]} 23. a4 {[%emt 0:00:04]} h4 {[%emt 0:00:29]} 24. Ne2 {[%emt 0:00:16]} Rdg8 {[%emt 0:02:08]} 25. Rf2 {[%emt 0:02:56]} h3 {[%emt 0:01:46]} 26. Neg3 {[%emt 0:01:10]} Qc6 {[%emt 0:02:12]} 27. a5 {[%emt 0:00:29]} Qb7 {[%emt 0:00:43]} 28. Qb5 {[%emt 0:00:06]} c6 {[%emt 0:00:10]} 29. Qb4 {[%emt 0:00:40]} hxg2+ {[%emt 0:00:41]} 30. Rxg2 {[%emt 0:00:02]} b5 {[%emt 0:01:11]} 31. Nd6 {[%emt 0:01:02]} Be7 {[%emt 0:00:58]} 32. Ngf5 {[%emt 0:00:12]} Rxg2 {[%emt 0:00:12]} 33. Kxg2 {[%emt 0:00:04]} Bxd6 {[%emt 0:00:06]} 34. Qxd6+ {[%emt 0:01:07]} Qc7 {[%emt 0:00:09]} 35. dxe5 {[%emt 0:00:43]} Nxe5 {[%emt 0:00:45]} 36. Re1 {[%emt 0:00:36]} Rxh2+ {[%emt 0:00:37]} 37. Kxh2 {[%emt 0:00:30]} Qxd6 {[%emt 0:00:05]} 38. Nxd6 {[%emt 0:00:03]} Nf3+ {[%emt 0:00:05]} 39. Kg3 {[%emt 0:00:16]} Nxe1 {[%emt 0:00:04]} 40. Nxf7 {[%emt 0:00:00]} Nd3 {[%emt 0:00:00]} 41. b4 {[%emt 0:03:37]} d4 {[%emt 0:08:17]} 42. cxd4 {[%emt 0:03:42]} Nxb4 {[%emt 0:00:05]} 43. Kf4 {[%emt 0:05:30]} 1/2-1/2

[Event "XXIX Cracovia 2018"]
[Site "Krakow"]
[Date "2018.12.27"]
[Round "1"]
[White "Antolak, Julia"]
[Black "Grib, Roman"]
[Result "1/2-1/2"]
[ECO "B35"]
[WhiteElo "2183"]
[BlackElo "2412"]
[Annotator "NA"]
[PlyCount "122"]
[EventDate "2018.12.27"]
[EventType "swiss"]
[EventCountry "POL"]
[SourceTitle "playchess.com"]
[Source "ChessBase"]
[SourceQuality "1"]
[TimeControl "40/5400+30:1800+30"]

1. e4 {[%emt 0:00:00]} c5 {[%emt 0:00:00]} 2. Nf3 {[%emt 0:00:00]} Nc6 {[%emt 0:00:00]} 3. d4 {[%emt 0:00:00]} cxd4 {[%emt 0:00:00]} 4. Nxd4 {[%emt 0:00:05]} g6 {[%emt 0:00:11]} 5. Nc3 {[%emt 0:01:05]} Bg7 {[%emt 0:00:11]} 6. Be3 {[%emt 0:00:07]} Nf6 {[%emt 0:00:06]} 7. Bc4 {[%emt 0:00:28]} Qa5 {[%emt 0:00:31]} 8. O-O {[%emt 0:02:04]} O-O {[%emt 0:00:28]} 9. h3 {[%emt 0:02:40]} d6 {[%emt 0:01:26]} 10. Bb3 {[%emt 0:02:02]} Nd7 {[%emt 0:13:42]} 11. Re1 {[%emt 0:06:00]} Nc5 {[%emt 0:10:27]} 12. Qd2 {[%emt 0:10:22]} Bd7 {[%emt 0:10:31]} 13. Rad1 {[%emt 0:02:34]} Kh8 {[%emt 0:10:30]} 14. f4 {[%emt 0:08:23]} Rad8 {[%emt 0:07:16]} 15. Qf2 {[%emt 0:06:21]} b6 {[%emt 0:08:36]} 16. Bd5 {[%emt 0:04:21]} Nxd4 {[%emt 0:06:55]} 17. Bxd4 {[%emt 0:00:06]} Ne6 {[%emt 0:06:25]} 18. Bxg7+ {[%emt 0:01:47]} Nxg7 {[%emt 0:00:09]} 19. Bb3 {[%emt 0:04:41]} Qc5 {[%emt 0:02:44]} 20. e5 {[%emt 0:04:31]} Qxf2+ {[%emt 0:03:11]} 21. Kxf2 {[%emt 0:00:05]} dxe5 {[%emt 0:00:12]} 22. Rxe5 {[%emt 0:01:18]} e6 {[%emt 0:01:40]} 23. Re2 {[%emt 0:03:09]} Bc6 {[%emt 0:00:23]} 24. Red2 {[%emt 0:00:16]} Rxd2+ {[%emt 0:01:04]} 25. Rxd2 {[%emt 0:00:06]} Rc8 {[%emt 0:03:03]} 26. Bc4 {[%emt 0:03:19]} Nh5 {[%emt 0:02:07]} 27. g3 {[%emt 0:05:38]} Nf6 {[%emt 0:00:40]} 28. Be2 {[%emt 0:02:13]} Kg7 {[%emt 0:04:05]} 29. Bf3 {[%emt 0:01:09]} b5 {[%emt 0:01:48]} 30. a3 {[%emt 0:02:08]} a5 {[%emt 0:00:35]} 31. Rd4 {[%emt 0:01:36]} Bxf3 {[%emt 0:00:58]} 32. Kxf3 {[%emt 0:00:06]} Rc5 {[%emt 0:00:03]} 33. h4 {[%emt 0:05:08]} h6 {[%emt 0:03:25]} 34. Rd2 {[%emt 0:04:38]} g5 {[%emt 0:01:04]} 35. hxg5 {[%emt 0:01:01]} hxg5 {[%emt 0:00:04]} 36. Ne4 {[%emt 0:00:42]} Nxe4 {[%emt 0:02:06]} 37. Kxe4 {[%emt 0:00:06]} Rc4+ {[%emt 0:01:19]} 38. Ke3 {[%emt 0:01:48]} gxf4+ {[%emt 0:00:26]} 39. gxf4 {[%emt 0:00:06]} Kf6 {[%emt 0:00:27]} 40. Rh2 {[%emt 0:00:00]} b4 {[%emt 0:00:00]} 41. axb4 {[%emt 0:03:32]} axb4 {[%emt 0:07:12]} 42. Rg2 {[%emt 0:01:53]} Ke7 {[%emt 0:01:59]} 43. Rf2 {[%emt 0:01:27]} f5 {[%emt 0:01:59]} 44. Kd3 {[%emt 0:01:38]} Re4 {[%emt 0:00:14]} 45. c3 {[%emt 0:00:30]} bxc3 {[%emt 0:10:40]} 46. bxc3 {[%emt 0:00:13]} Kd6 {[%emt 0:00:08]} 47. Rf3 {[%emt 0:00:50]} Kd5 {[%emt 0:01:03]} 48. Rf2 {[%emt 0:00:21]} Re1 {[%emt 0:00:50]} 49. Ra2 {[%emt 0:01:59]} Re4 {[%emt 0:02:20]} 50. Rf2 {[%emt 0:00:22]} Ra4 {[%emt 0:00:56]} 51. Rf1 {[%emt 0:00:55]} Ra2 {[%emt 0:02:47]} 52. Rb1 {[%emt 0:00:48]} Rf2 {[%emt 0:00:34]} 53. Rb5+ {[%emt 0:00:27]} Kc6 {[%emt 0:00:06]} 54. Re5 {[%emt 0:00:32]} Kd6 {[%emt 0:00:26]} 55. Ke3 {[%emt 0:01:29]} Rh2 {[%emt 0:02:22]} 56. Ra5 {[%emt 0:02:18]} Rh3+ {[%emt 0:00:11]} 57. Kd2 {[%emt 0:00:33]} Rf3 {[%emt 0:00:23]} 58. Ra6+ {[%emt 0:00:45]} Kd5 {[%emt 0:00:46]} 59. Ra5+ {[%emt 0:00:05]} Kd6 {[%emt 0:00:45]} 60. Ra6+ {[%emt 0:00:05]} Ke7 {[%emt 0:00:02]} 61. Ra7+ {[%emt 0:00:24]} Kd6 {[%emt 0:00:37]} 1/2-1/2

[Event "XXIX Cracovia 2018"]
[Site "Krakow"]
[Date "2018.12.27"]
[Round "1"]
[White "Fiedorek, Michal"]
[Black "Lewtak, Damian"]
[Result "0-1"]
[ECO "B47"]
[WhiteElo "2178"]
[BlackElo "2393"]
[Annotator "NA"]
[PlyCount "84"]
[EventDate "2018.12.27"]
[EventType "swiss"]
[EventCountry "POL"]
[SourceTitle "playchess.com"]
[Source "ChessBase"]
[SourceQuality "1"]
[TimeControl "40/5400+30:1800+30"]

1. e4 {[%emt 0:00:00]} c5 {[%emt 0:00:00]} 2. Nf3 {[%emt 0:00:00]} e6 {[%emt 0:00:00]} 3. d4 {[%emt 0:00:00]} cxd4 {[%emt 0:00:01]} 4. Nxd4 {[%emt 0:00:03]} Nc6 {[%emt 0:00:05]} 5. Nc3 {[%emt 0:00:25]} Qc7 {[%emt 0:00:08]} 6. Be2 {[%emt 0:01:30]} a6 {[%emt 0:00:42]} 7. O-O {[%emt 0:00:20]} Nf6 {[%emt 0:04:48]} 8. Be3 {[%emt 0:00:10]} Bb4 {[%emt 0:03:25]} 9. Na4 {[%emt 0:00:45]} O-O {[%emt 0:11:48]} 10. c4 {[%emt 0:05:17]} Bd6 {[%emt 0:04:15]} 11. g3 {[%emt 0:03:34]} Nxe4 {[%emt 0:04:15]} 12. c5 {[%emt 0:02:17]} Be7 {[%emt 0:11:55]} 13. Nxc6 {[%emt 0:11:29]} bxc6 {[%emt 0:01:21]} 14. Qd4 {[%emt 0:05:27]} Nf6 {[%emt 0:06:41]} 15. Nb6 {[%emt 0:17:13]} Ra7 {[%emt 0:00:09]} 16. Bf4 {[%emt 0:05:02]} Qb7 {[%emt 0:00:51]} 17. Be5 {[%emt 0:05:07]} Ne8 {[%emt 0:02:51]} 18. Rac1 {[%emt 0:07:42]} f6 {[%emt 0:04:17]} 19. Bf4 {[%emt 0:02:39]} Nc7 {[%emt 0:01:36]} 20. Rfd1 {[%emt 0:05:29]} Nd5 {[%emt 0:02:41]} 21. Nxd5 {[%emt 0:00:11]} cxd5 {[%emt 0:02:12]} 22. Be3 {[%emt 0:02:32]} Qc6 {[%emt 0:05:56]} 23. b4 {[%emt 0:03:54]} Rc7 {[%emt 0:01:00]} 24. Qb2 {[%emt 0:03:57]} Rb7 {[%emt 0:03:17]} 25. Qb3 {[%emt 0:03:43]} Rb8 {[%emt 0:07:36]} 26. a4 {[%emt 0:04:59]} d6 {[%emt 0:01:51]} 27. b5 {[%emt 0:05:19]} dxc5 {[%emt 0:00:48]} 28. bxc6 {[%emt 0:00:25]} Rxb3 {[%emt 0:00:13]} 29. Bxc5 {[%emt 0:00:21]} Kf7 {[%emt 0:06:22]} 30. f4 {[%emt 0:02:40]} Bxc5+ {[%emt 0:03:19]} 31. Rxc5 {[%emt 0:00:03]} Ke7 {[%emt 0:00:20]} 32. Rdc1 {[%emt 0:02:03]} Rd8 {[%emt 0:04:33]} 33. a5 {[%emt 0:00:25]} d4 {[%emt 0:02:00]} 34. c7 {[%emt 0:00:54]} Rd6 {[%emt 0:01:01]} 35. Bc4 {[%emt 0:00:20]} Rc3 {[%emt 0:01:11]} 36. Rxc3 {[%emt 0:00:37]} dxc3 {[%emt 0:00:05]} 37. Bb3 {[%emt 0:00:14]} Rd3 {[%emt 0:03:11]} 38. Bc2 {[%emt 0:01:05]} Kd6 {[%emt 0:01:03]} 39. Rc4 {[%emt 0:00:39]} Rd5 {[%emt 0:00:51]} 40. Rxc3 {[%emt 0:00:00]} g6 {[%emt 0:00:00]} 41. g4 {[%emt 0:09:11]} Rxa5 {[%emt 0:02:51]} 42. Rh3 {[%emt 0:02:47]} Rc5 {[%emt 0:00:58]} 0-1